[Event "EYTCC U18 Girls 2018"]
[Site "Bad Blankeburg"]
[Date "2018.07.13"]
[Round "2"]
[White "Schneider, Jana"]
[Black "Hercog, Nusa"]
[Result "1-0"]
[ECO "B12"]
[WhiteElo "2234"]
[BlackElo "2011"]
[Annotator "NA"]
[PlyCount "80"]
[EventDate "2018.07.12"]
[EventType "swiss"]
[EventCountry "GER"]
[SourceTitle "playchess.com"]
[Source "ChessBase"]
[SourceQuality "1"]
[TimeControl "40/5400+30:1800+30"]

1. e4 {[%emt 0:00:00]} c6 {[%emt 0:00:00]} 2. d4 {[%emt 0:01:38]} d5 {[%emt 0:00:00]} 3. e5 {[%emt 0:00:06]} Bf5 {[%emt 0:01:06]} 4. h4 {[%emt 0:00:26]} h6 {[%emt 0:16:49]} 5. Ne2 {[%emt 0:06:03]} e6 {[%emt 0:01:12]} 6. Ng3 {[%emt 0:01:19]} Bg6 {[%emt 0:02:41]} 7. h5 {[%emt 0:09:36]} Bh7 {[%emt 0:00:09]} 8. Bd3 {[%emt 0:00:31]} Bxd3 {[%emt 0:01:27]} 9. Qxd3 {[%emt 0:00:51]} Qb6 {[%emt 0:03:39]} 10. Rh4 $15 {[%emt 0:09:16]} c5 {[%emt 0:18:48]} 11. c3 {[%emt 0:14:20]} Nc6 {[%emt 0:03:00]} 12. Rf4 {[%emt 0:03:36]} cxd4 {[%emt 0:03:03]} 13. cxd4 {[%emt 0:00:27]} Be7 {[%emt 0:07:27]} 14. Nc3 {[%emt 0:09:36]} Nb4 {[%emt 0:08:42]} 15. Qe2 {[%emt 0:04:36]} Bg5 {[%emt 0:09:35]} 16. Rf3 {[%emt 0:04:34]} Bxc1 {[%emt 0:01:23]} 17. Rxc1 {[%emt 0:00:39]} a6 {[%emt 0:04:18]} 18. Rf4 {[%emt 0:02:49]} Ne7 {[%emt 0:00:24]} 19. Qf3 {[%emt 0:03:58]} O-O {[%emt 0:00:57]} 20. Nge2 {[%emt 0:00:56]} Nf5 {[%emt 0:02:28]} 21. g4 {[%emt 0:08:41]} Nh4 {[%emt 0:00:49]} 22. Qg3 {[%emt 0:01:03]} Ng2+ {[%emt 0:01:02]} 23. Qxg2 {[%emt 0:00:02]} Nd3+ {[%emt 0:00:07]} 24. Kf1 {[%emt 0:00:10]} Nxf4 {[%emt 0:00:05]} 25. Nxf4 {[%emt 0:00:05]} Qxd4 {[%emt 0:01:07]} 26. Qg3 {[%emt 0:01:04]} Qxe5 {[%emt 0:00:46]} 27. Re1 {[%emt 0:00:37]} Qf6 {[%emt 0:03:22]} 28. Nd3 {[%emt 0:02:47]} Rac8 {[%emt 0:00:58]} 29. Ne5 {[%emt 0:00:42]} Rfd8 {[%emt 0:01:16]} 30. Kg1 {[%emt 0:03:15]} Qe7 {[%emt 0:02:01]} 31. Nd3 {[%emt 0:02:24]} b5 {[%emt 0:00:53]} 32. a3 {[%emt 0:00:21]} Rc4 {[%emt 0:02:40]} 33. f4 {[%emt 0:01:20]} Kh8 {[%emt 0:01:49]} 34. f5 {[%emt 0:04:23]} Qa7+ {[%emt 0:00:53]} 35. Kh1 {[%emt 0:00:15]} d4 {[%emt 0:00:54]} 36. Ne4 {[%emt 0:00:46]} Qb7 {[%emt 0:00:43]} 37. fxe6 {[%emt 0:01:38]} fxe6 {[%emt 0:00:12]} 38. g5 {[%emt 0:02:29]} Qd5 {[%emt 0:01:18]} 39. Ne5 {[%emt 0:00:24]} Rcc8 {[%emt 0:00:56]} 40. gxh6 {[%emt 0:00:55]} Rg8 1-0

[Event "EYTCC U18 Girls 2018"]
[Site "Bad Blankeburg"]
[Date "2018.07.13"]
[Round "2"]
[White "Urh, Zala"]
[Black "Sieber, Fiona"]
[Result "0-1"]
[ECO "D97"]
[WhiteElo "2216"]
[BlackElo "2283"]
[Annotator "NA"]
[PlyCount "78"]
[EventDate "2018.07.12"]
[EventType "swiss"]
[EventCountry "GER"]
[SourceTitle "playchess.com"]
[Source "ChessBase"]
[SourceQuality "1"]
[TimeControl "40/5400+30:1800+30"]

1. d4 {[%emt 0:00:00]} Nf6 {[%emt 0:00:00]} 2. c4 {[%emt 0:00:00]} g6 {[%emt 0:00:00]} 3. Nc3 {[%emt 0:00:00]} d5 {[%emt 0:00:00]} 4. Nf3 {[%emt 0:00:00]} Bg7 {[%emt 0:00:00]} 5. Qb3 {[%emt 0:00:02]} dxc4 {[%emt 0:00:00]} 6. Qxc4 {[%emt 0:00:07]} O-O {[%emt 0:00:00]} 7. e4 {[%emt 0:00:07]} a6 {[%emt 0:00:02]} 8. Be2 {[%emt 0:00:56]} b5 {[%emt 0:00:08]} 9. Qb3 {[%emt 0:00:37]} c5 {[%emt 0:00:05]} 10. dxc5 {[%emt 0:00:06]} Be6 {[%emt 0:00:05]} 11. Qc2 {[%emt 0:00:37] D97: Grünfeld: Russian System: 7 e4, replies other than 7...Bg4} Nbd7 {[%emt 0:00:08]} 12. Be3 {[%emt 0:00:10]} Rc8 {[%emt 0:00:14]} 13. Rd1 {[%emt 0:00:24]} b4 {[%emt 0:00:56]} 14. Nd5 {[%emt 0:00:38]} Bxd5 {[%emt 0:00:54]} 15. exd5 {[%emt 0:00:23]} Nxc5 {[%emt 0:00:27]} 16. O-O {[%emt 0:01:34]} Qd6 {[%emt 0:01:06]} (16... Nce4 17. Qd3 Qd6 18. Qxa6 Rc2 {½-½ (67) Giri,A (2755)-Nepomniachtchi,I (2740) Moscow 2016}) 17. Rc1 {[%emt 0:02:40]} Qb8 {[%emt 0:01:49]} 18. Rfd1 {[%emt 0:06:40]} a5 {[%emt 0:01:43]} 19. Bc4 $146 {[%emt 0:06:16]} a4 {[%emt 0:24:12]} 20. Qe2 $1 {[%emt 0:10:37]} Nce4 {[%emt 0:04:39]} 21. Nd4 $16 {[%emt 0:05:57]} a3 {[%emt 0:10:47]} 22. bxa3 {[%emt 0:16:22]} Nc3 {[%emt 0:01:53]} 23. Rxc3 {[%emt 0:00:15]} bxc3 {[%emt 0:02:07]} 24. Nc6 {[%emt 0:01:11]} Qd6 {[%emt 0:08:39]} 25. Bd4 {[%emt 0:04:44]} c2 {[%emt 0:02:11]} 26. Qxc2 {[%emt 0:02:48]} Ng4 {[%emt 0:00:28]} 27. h3 {[%emt 0:18:11]} Qh2+ {[%emt 0:24:10]} 28. Kf1 {[%emt 0:00:30]} Bxd4 {[%emt 0:03:54]} 29. Rxd4 {[%emt 0:12:05]} Nf6 {[%emt 0:00:38]} 30. Nxe7+ {[%emt 0:05:34]} Kg7 {[%emt 0:00:05]} 31. d6 {[%emt 0:00:03]} Rcd8 {[%emt 0:01:02]} 32. Qd3 {[%emt 0:02:48]} Qh1+ {[%emt 0:00:26]} 33. Ke2 {[%emt 0:00:01]} Qxg2 {[%emt 0:00:08]} 34. Qe3 {[%emt 0:00:56]} Qh2 {[%emt 0:02:18]} 35. Qg5 {[%emt 0:01:56]} Rfe8 {[%emt 0:01:58]} 36. Qd2 {[%emt 0:01:58]} Qxh3 {[%emt 0:04:13]} 37. Kd1 {[%emt 0:00:17]} Qh5+ {[%emt 0:02:02]} 38. Kc2 {[%emt 0:00:34]} Qc5 {[%emt 0:00:16]} 39. Kc3 {[%emt 0:00:45]} Rxd6 {[%emt 0:00:39]} 0-1

[Event "EYTCC U18 Girls 2018"]
[Site "Bad Blankeburg"]
[Date "2018.07.13"]
[Round "2"]
[White "Rozman, Monika"]
[Black "Sahin, Hayrun Nisa"]
[Result "1/2-1/2"]
[ECO "B75"]
[WhiteElo "2125"]
[BlackElo "1736"]
[Annotator "NA"]
[PlyCount "107"]
[EventDate "2018.07.12"]
[EventType "swiss"]
[EventCountry "GER"]
[SourceTitle "playchess.com"]
[Source "ChessBase"]
[SourceQuality "1"]
[TimeControl "40/5400+30:1800+30"]

1. e4 {[%emt 0:00:00]} c5 {[%emt 0:00:00]} 2. Nf3 {[%emt 0:00:00]} d6 {[%emt 0:00:00]} 3. d4 {[%emt 0:00:00]} cxd4 {[%emt 0:00:00]} 4. Nxd4 {[%emt 0:00:00]} Nf6 {[%emt 0:00:10]} 5. Nc3 {[%emt 0:00:00]} g6 {[%emt 0:00:26]} 6. Be3 {[%emt 0:00:27]} Bg7 {[%emt 0:00:12]} 7. f3 {[%emt 0:00:13]} a6 {[%emt 0:00:14]} 8. Qd2 {[%emt 0:00:31]} h5 {[%emt 0:00:35]} 9. O-O-O {[%emt 0:01:50]} b5 {[%emt 0:04:20]} 10. Nd5 {[%emt 0:00:13]} Nxd5 {[%emt 0:10:01]} 11. exd5 {[%emt 0:00:07]} Bb7 {[%emt 0:00:16]} 12. f4 {[%emt 0:01:21]} Nd7 {[%emt 0:04:36]} 13. f5 {[%emt 0:03:44]} gxf5 {[%emt 0:08:47]} 14. Nxf5 {[%emt 0:01:21]} Bf6 {[%emt 0:00:56]} 15. Qf2 {[%emt 0:29:47]} Qc7 {[%emt 0:11:50]} 16. Rg1 {[%emt 0:06:26]} Rc8 {[%emt 0:15:50]} 17. Kb1 {[%emt 0:10:01]} Be5 {[%emt 0:16:21]} 18. Bd4 {[%emt 0:08:51]} Bxd4 {[%emt 0:03:58]} 19. Rxd4 {[%emt 0:00:21]} Nf6 {[%emt 0:00:27]} 20. Bd3 {[%emt 0:01:02]} Bxd5 {[%emt 0:11:35]} 21. Rxd5 {[%emt 0:04:35]} Nxd5 {[%emt 0:06:05]} 22. Ng7+ {[%emt 0:00:07]} Kd7 {[%emt 0:01:10]} 23. Qxf7 {[%emt 0:01:49]} Qc5 {[%emt 0:01:42]} 24. Rd1 {[%emt 0:05:25]} Ne3 {[%emt 0:01:33]} 25. Re1 {[%emt 0:01:09]} Qd5 {[%emt 0:00:37]} 26. Qf2 {[%emt 0:05:32]} Qxg2 {[%emt 0:00:33]} 27. Bf5+ {[%emt 0:01:51]} Kc6 {[%emt 0:00:23]} 28. Qxe3 {[%emt 0:07:56]} Qxg7 {[%emt 0:00:08]} 29. Qe4+ {[%emt 0:00:04]} Kc7 {[%emt 0:00:31]} 30. Bxc8 {[%emt 0:01:04]} Rxc8 {[%emt 0:00:19]} 31. Qxe7+ {[%emt 0:01:24]} Qxe7 {[%emt 0:00:05]} 32. Rxe7+ {[%emt 0:00:03]} Kc6 {[%emt 0:00:16]} 33. Rh7 {[%emt 0:02:55]} Rf8 {[%emt 0:00:28]} 34. a3 {[%emt 0:01:54]} Rf5 {[%emt 0:01:13]} 35. b4 {[%emt 0:02:16]} Kd5 {[%emt 0:00:37]} 36. Rh6 {[%emt 0:01:00]} Ke5 {[%emt 0:00:47]} 37. Kb2 {[%emt 0:00:11]} Kd5 {[%emt 0:00:19]} 38. Ka2 {[%emt 0:00:55]} Ke5 {[%emt 0:00:18]} 39. Kb2 {[%emt 0:00:19]} Kd5 {[%emt 0:00:04]} 40. Rh8 {[%emt 0:01:10]} Kc6 {[%emt 0:00:55]} 41. Rh7 {[%emt 0:31:25]} Kb6 {[%emt 0:31:14]} 42. Rh6 {[%emt 0:00:15]} Kc6 {[%emt 0:00:12]} 43. h4 {[%emt 0:00:58]} Kd5 {[%emt 0:00:00]} 44. Kb3 {[%emt 0:00:00]} Ke5 {[%emt 0:00:00]} 45. a4 {[%emt 0:00:00]} Rf3+ {[%emt 0:00:00]} 46. c3 {[%emt 0:00:00]} bxa4+ {[%emt 0:00:00]} 47. Kxa4 {[%emt 0:00:00]} Rxc3 {[%emt 0:00:00]} 48. Rxh5+ {[%emt 0:00:00]} Ke4 {[%emt 0:00:00]} 49. Rh8 {[%emt 0:00:00]} Rh3 {[%emt 0:00:00]} 50. h5 {[%emt 0:00:00]} d5 {[%emt 0:00:00]} 51. h6 {[%emt 0:00:00]} d4 {[%emt 0:00:00]} 52. h7 {[%emt 0:00:00]} Kd3 {[%emt 0:00:00]} 53. Ka5 {[%emt 0:00:00]} Rh6 {[%emt 0:00:00]} 54. b5 {[%emt 0:00:00]} 1/2-1/2

[Event "EYTCC U18 Girls 2018"]
[Site "Bad Blankeburg"]
[Date "2018.07.13"]
[Round "2"]
[White "Rogozenco, Teodora"]
[Black "Kiolbasa, Oliwia"]
[Result "0-1"]
[ECO "A50"]
[WhiteElo "2047"]
[BlackElo "2189"]
[Annotator "NA"]
[PlyCount "96"]
[EventDate "2018.07.12"]
[EventType "swiss"]
[EventCountry "GER"]
[SourceTitle "playchess.com"]
[Source "ChessBase"]
[SourceQuality "1"]
[TimeControl "40/5400+30:1800+30"]

1. d4 {[%emt 0:00:00]} Nf6 {[%emt 0:00:00]} 2. c4 {[%emt 0:00:00]} b6 {[%emt 0:00:00]} 3. Nc3 {[%emt 0:00:05]} Bb7 {[%emt 0:00:07]} 4. Qc2 {[%emt 0:01:37]} d5 {[%emt 0:00:14]} 5. cxd5 {[%emt 0:00:22]} Nxd5 {[%emt 0:00:11]} 6. e4 {[%emt 0:00:14]} Nxc3 {[%emt 0:00:16]} 7. bxc3 {[%emt 0:00:08]} e6 {[%emt 0:00:11]} 8. Nf3 {[%emt 0:00:18]} Be7 {[%emt 0:00:34]} 9. Bc4 {[%emt 0:08:24]} c5 {[%emt 0:05:59]} 10. O-O {[%emt 0:00:15]} cxd4 {[%emt 0:00:55]} 11. cxd4 {[%emt 0:00:10]} O-O {[%emt 0:00:21]} 12. Rd1 {[%emt 0:04:56]} Qc7 {[%emt 0:09:13]} 13. Qe2 {[%emt 0:03:06]} Nd7 $11 {[%emt 0:09:56]} 14. Bd3 {[%emt 0:06:24]} Rac8 {[%emt 0:05:51]} 15. Bd2 {[%emt 0:07:08]} Ba3 {[%emt 0:27:38]} 16. Rab1 {[%emt 0:02:49]} h6 {[%emt 0:03:51]} 17. Rb3 {[%emt 0:13:07]} Be7 {[%emt 0:01:11]} 18. a4 {[%emt 0:02:15]} e5 {[%emt 0:10:13]} 19. Rc3 {[%emt 0:21:27]} Qb8 {[%emt 0:00:25]} 20. Bb5 {[%emt 0:00:36]} Rxc3 {[%emt 0:09:25]} 21. Bxc3 {[%emt 0:00:19]} Nf6 {[%emt 0:00:08]} 22. Nxe5 {[%emt 0:04:42]} Nxe4 {[%emt 0:01:36]} 23. Bb2 {[%emt 0:03:38]} Bd6 {[%emt 0:06:13]} 24. Bc4 {[%emt 0:18:27]} Qd8 {[%emt 0:04:12]} 25. Qg4 {[%emt 0:01:11]} Nf6 {[%emt 0:02:10]} 26. Qf5 {[%emt 0:00:10]} Bc8 {[%emt 0:00:43]} 27. Qb1 {[%emt 0:00:30]} Bb7 {[%emt 0:00:58]} 28. Bb3 {[%emt 0:00:34]} Bd5 {[%emt 0:00:45]} 29. Qa2 {[%emt 0:00:48]} Bb8 {[%emt 0:00:24]} 30. Ba3 {[%emt 0:00:17]} Bxb3 {[%emt 0:00:42]} 31. Qxb3 {[%emt 0:00:05]} Bd6 {[%emt 0:00:11]} 32. Bb2 {[%emt 0:00:24]} Qc7 {[%emt 0:00:42]} 33. Rc1 {[%emt 0:00:08]} Qb7 {[%emt 0:00:11]} 34. Nc6 {[%emt 0:00:52]} Bf4 {[%emt 0:00:30]} 35. Rc2 {[%emt 0:00:35]} Re8 {[%emt 0:00:56]} 36. g3 {[%emt 0:00:23]} Bd6 {[%emt 0:00:35]} 37. d5 {[%emt 0:00:50]} Ne4 {[%emt 0:00:26]} 38. Re2 {[%emt 0:00:24]} Qd7 {[%emt 0:00:32]} 39. Qd1 {[%emt 0:00:39]} Bc5 {[%emt 0:00:25]} 40. Kg2 {[%emt 0:00:54]} Nd6 {[%emt 0:00:35]} 41. Qe1 {[%emt 0:04:06]} Rxe2 {[%emt 0:07:44]} 42. Qxe2 {[%emt 0:00:44]} Ne8 {[%emt 0:00:08]} 43. Qe5 {[%emt 0:08:21]} Nf6 {[%emt 0:02:47]} 44. Kg1 {[%emt 0:11:30]} Bxf2+ {[%emt 0:05:06]} 45. Kf1 {[%emt 0:04:15]} Bc5 {[%emt 0:01:50]} 46. Kg2 {[%emt 0:02:45]} a5 {[%emt 0:02:39]} 47. Bd4 {[%emt 0:01:15]} Bxd4 {[%emt 0:01:06]} 48. Qxd4 {[%emt 0:01:11]} Qxd5+ {[%emt 0:00:35]} 0-1

[Event "EYTCC U18 Girls 2018"]
[Site "Bad Blankeburg"]
[Date "2018.07.13"]
[Round "2"]
[White "Aydin, Gulenay"]
[Black "Hrescak, Ivana"]
[Result "0-1"]
[ECO "B90"]
[WhiteElo "1732"]
[BlackElo "2129"]
[Annotator "NA"]
[PlyCount "108"]
[EventDate "2018.07.12"]
[EventType "swiss"]
[EventCountry "GER"]
[SourceTitle "playchess.com"]
[Source "ChessBase"]
[SourceQuality "1"]
[TimeControl "40/5400+30:1800+30"]

1. e4 {[%emt 0:00:00]} c5 {[%emt 0:00:00]} 2. Nf3 {[%emt 0:00:00]} d6 {[%emt 0:00:00]} 3. d4 {[%emt 0:00:07]} cxd4 {[%emt 0:00:00]} 4. Nxd4 {[%emt 0:00:07]} Nf6 {[%emt 0:00:00]} 5. Nc3 {[%emt 0:00:09]} a6 {[%emt 0:00:00]} 6. f3 {[%emt 0:00:34]} e5 {[%emt 0:00:53]} 7. Nb3 {[%emt 0:00:10]} Be6 {[%emt 0:00:23]} 8. Be3 {[%emt 0:00:16]} Be7 {[%emt 0:01:12]} 9. Qd2 {[%emt 0:00:21]} Nbd7 {[%emt 0:00:23]} 10. g4 {[%emt 0:01:27]} h6 {[%emt 0:02:09]} 11. O-O-O {[%emt 0:00:37]} b5 {[%emt 0:00:32]} 12. Kb1 {[%emt 0:01:28]} Nb6 {[%emt 0:01:50]} 13. Qf2 {[%emt 0:01:42]} Nfd7 {[%emt 0:01:50] B90: Sicilian Najdorf: Unusual White 6th moves, 6 Be3 Ng4 and 6 Be3 e5} 14. h4 {[%emt 0:02:41]} Nc4 {[%emt 0:05:19]} 15. Bxc4 {[%emt 0:02:27]} bxc4 {[%emt 0:00:08]} 16. Nc1 {[%emt 0:02:01]} Rb8 {[%emt 0:02:57] [#]} 17. g5 $146 {[%emt 0:12:42]} ({Predecessor:} 17. N1e2 Qa5 18. Ka1 Nc5 19. Bxc5 Qxc5 20. Qxc5 dxc5 21. Nd5 Rb7 {½-½ (44) Finocchiaro,F (2621)-Clever,H (2520) ICCF email 2013}) 17... h5 {[%emt 0:08:14]} 18. f4 {[%emt 0:07:24]} Qa5 {[%emt 0:12:34] [#]} 19. N1e2 $14 {[%emt 0:01:40]} Qb4 {[%emt 0:04:01]} 20. Bc1 {[%emt 0:00:49]} exf4 {[%emt 0:04:49]} 21. Ka1 {[%emt 0:04:02]} f3 {[%emt 0:05:30]} 22. Nd4 {[%emt 0:07:34]} Ne5 {[%emt 0:02:20]} 23. Rhf1 {[%emt 0:09:12]} O-O {[%emt 0:07:16]} 24. Nf5 {[%emt 0:21:08]} Rfe8 {[%emt 0:07:13]} 25. Qd2 {[%emt 0:02:50]} Bf8 {[%emt 0:07:17]} 26. Rde1 {[%emt 0:07:10]} g6 {[%emt 0:06:53]} 27. Ne3 {[%emt 0:01:22]} Bg7 {[%emt 0:00:32]} 28. a3 {[%emt 0:04:28]} Qa5 {[%emt 0:02:24]} 29. Ned5 {[%emt 0:01:46]} Bxd5 {[%emt 0:03:54]} 30. Nxd5 {[%emt 0:00:08]} Qxd2 {[%emt 0:01:41]} 31. Bxd2 {[%emt 0:00:03]} f2 {[%emt 0:04:51]} 32. Re2 {[%emt 0:02:50]} Ng4 {[%emt 0:01:53]} 33. c3 {[%emt 0:03:14]} Be5 {[%emt 0:03:34]} 34. Be3 {[%emt 0:02:16]} Bg3 {[%emt 0:01:55]} 35. Bxf2 {[%emt 0:01:56]} Bxf2 {[%emt 0:01:07]} 36. Rexf2 {[%emt 0:00:18]} Nxf2 {[%emt 0:00:19]} 37. Nf6+ {[%emt 0:00:07]} Kg7 {[%emt 0:01:15]} 38. Rxf2 {[%emt 0:00:33]} Re6 {[%emt 0:00:56]} 39. Rd2 {[%emt 0:00:34]} Rb6 {[%emt 0:00:42]} 40. Rd4 {[%emt 0:00:43]} Rc6 {[%emt 0:00:41]} 41. Ka2 {[%emt 0:30:43]} Rxf6 {[%emt 0:02:49]} 42. gxf6+ {[%emt 0:00:00]} Kxf6 {[%emt 0:00:02]} 43. Rd5 {[%emt 0:00:00]} Ke6 {[%emt 0:01:57]} 44. Ra5 {[%emt 0:00:00]} f5 {[%emt 0:04:56]} 45. exf5+ {[%emt 0:00:00]} gxf5 {[%emt 0:00:06]} 46. Kb1 {[%emt 0:00:00]} d5 {[%emt 0:01:48]} 47. Kc2 {[%emt 0:00:00]} f4 {[%emt 0:02:51]} 48. Kd2 {[%emt 0:00:00]} Ke5 {[%emt 0:00:27]} 49. Ke2 {[%emt 0:00:00]} Ke4 {[%emt 0:01:09]} 50. Ra4 {[%emt 0:00:00]} f3+ {[%emt 0:04:14]} 51. Kf2 {[%emt 0:00:00]} Rg6 {[%emt 0:00:12]} 52. b3 {[%emt 0:00:00]} Rg2+ {[%emt 0:01:56]} 53. Kf1 {[%emt 0:00:00]} Ke3 {[%emt 0:00:47]} 54. bxc4 {[%emt 0:00:00]} Ra2 {[%emt 0:01:02]} 0-1

[Event "EYTCC U18 Girls 2018"]
[Site "Bad Blankeburg"]
[Date "2018.07.14"]
[Round "3"]
[White "Sieber, Fiona"]
[Black "Lehaci, Miruna Daria"]
[Result "1-0"]
[ECO "C05"]
[WhiteElo "2283"]
[BlackElo "2015"]
[Annotator "NA"]
[PlyCount "97"]
[EventDate "2018.07.12"]
[EventType "swiss"]
[EventCountry "GER"]
[SourceTitle "playchess.com"]
[Source "ChessBase"]
[SourceQuality "1"]
[TimeControl "40/5400+30:1800+30"]

1. e4 {[%emt 0:00:00]} e6 {[%emt 0:00:00]} 2. d4 {[%emt 0:00:00]} d5 {[%emt 0:00:00]} 3. Nd2 {[%emt 0:00:00]} Nf6 {[%emt 0:00:00]} 4. e5 {[%emt 0:00:00]} Nfd7 {[%emt 0:00:00]} 5. Bd3 {[%emt 0:00:00]} b6 {[%emt 0:00:17]} 6. c3 {[%emt 0:00:45]} Ba6 {[%emt 0:00:33]} 7. Bxa6 {[%emt 0:00:21]} Nxa6 {[%emt 0:00:04]} 8. Nh3 {[%emt 0:00:14]} c5 {[%emt 0:01:43]} 9. O-O {[%emt 0:01:32]} Qc7 {[%emt 0:10:47]} 10. Qe2 {[%emt 0:16:27]} Nab8 {[%emt 0:07:10]} 11. Qg4 {[%emt 0:01:56]} Nc6 {[%emt 0:07:17]} 12. Nf3 {[%emt 0:01:16]} h6 {[%emt 0:01:13]} 13. Nf4 {[%emt 0:11:20]} O-O-O {[%emt 0:05:42]} 14. h4 {[%emt 0:03:46]} g6 $14 {[%emt 0:06:24]} 15. Bd2 {[%emt 0:06:30]} Kb8 {[%emt 0:03:44]} 16. Rfe1 {[%emt 0:04:06]} cxd4 {[%emt 0:04:05]} 17. cxd4 {[%emt 0:00:22]} Be7 {[%emt 0:00:47]} 18. Ne2 {[%emt 0:04:35]} Qb7 {[%emt 0:02:36]} 19. Rec1 {[%emt 0:10:23]} Rc8 {[%emt 0:02:27]} 20. Rc3 {[%emt 0:02:23]} Qa6 {[%emt 0:06:06]} 21. Nf4 {[%emt 0:04:33]} Rc7 {[%emt 0:02:56]} 22. Nxe6 {[%emt 0:08:43]} fxe6 {[%emt 0:05:22]} 23. Qxe6 {[%emt 0:00:02]} Qb7 {[%emt 0:03:58]} 24. Rac1 {[%emt 0:03:15]} Rhc8 {[%emt 0:01:06]} 25. Rxc6 {[%emt 0:00:45]} Rxc6 {[%emt 0:00:09]} 26. Rxc6 {[%emt 0:00:10]} Qxc6 {[%emt 0:00:36]} 27. Qxe7 {[%emt 0:00:04]} Nf8 {[%emt 0:06:08]} 28. Bxh6 {[%emt 0:00:31]} Ne6 {[%emt 0:00:46]} 29. Be3 {[%emt 0:00:05]} Rc7 {[%emt 0:02:12]} 30. Qf6 {[%emt 0:01:15]} Qe8 {[%emt 0:05:13]} 31. Ne1 {[%emt 0:06:00]} Rc6 {[%emt 0:04:09]} 32. Qf3 {[%emt 0:01:05]} Nc7 {[%emt 0:01:04]} 33. Nd3 {[%emt 0:00:48]} Rc2 {[%emt 0:01:54]} 34. Qd1 {[%emt 0:00:11]} Rc6 {[%emt 0:00:46]} 35. Nf4 {[%emt 0:01:25]} Kb7 {[%emt 0:01:58]} 36. Qf3 {[%emt 0:01:54]} Qf7 {[%emt 0:02:17]} 37. b4 {[%emt 0:03:05]} a6 {[%emt 0:00:56]} 38. a4 {[%emt 0:00:47]} Qf5 {[%emt 0:01:00]} 39. g4 {[%emt 0:03:17]} Qb1+ {[%emt 0:00:17]} 40. Kh2 {[%emt 0:00:41]} Qxb4 {[%emt 0:01:19]} 41. Nxd5 {[%emt 0:30:19]} Nxd5 {[%emt 0:31:14]} 42. Qxd5 {[%emt 0:00:05]} Qxa4 {[%emt 0:00:19]} 43. Qd7+ {[%emt 0:00:59]} Ka8 {[%emt 0:00:00]} 44. e6 {[%emt 0:00:00]} Qc4 {[%emt 0:00:00]} 45. e7 {[%emt 0:00:00]} Rc8 {[%emt 0:00:00]} 46. e8=Q {[%emt 0:00:00]} Rxe8 {[%emt 0:00:00]} 47. Qxe8+ {[%emt 0:00:00]} Kb7 {[%emt 0:00:00]} 48. Qd7+ {[%emt 0:00:00]} Ka8 {[%emt 0:00:00]} 49. d5 {[%emt 0:00:00]} 1-0

[Event "EYTCC U18 Girls 2018"]
[Site "Bad Blankeburg"]
[Date "2018.07.14"]
[Round "3"]
[White "Kiolbasa, Oliwia"]
[Black "Hrescak, Ivana"]
[Result "1-0"]
[ECO "B90"]
[WhiteElo "2189"]
[BlackElo "2129"]
[Annotator "NA"]
[PlyCount "71"]
[EventDate "2018.07.12"]
[EventType "swiss"]
[EventCountry "GER"]
[SourceTitle "playchess.com"]
[Source "ChessBase"]
[SourceQuality "1"]
[TimeControl "40/5400+30:1800+30"]

1. e4 {[%emt 0:00:00]} c5 {[%emt 0:00:00]} 2. Nf3 {[%emt 0:00:00]} d6 {[%emt 0:00:00]} 3. d4 {[%emt 0:00:00]} cxd4 {[%emt 0:00:00]} 4. Nxd4 {[%emt 0:00:00]} Nf6 {[%emt 0:00:00]} 5. Nc3 {[%emt 0:00:12]} a6 {[%emt 0:00:00]} 6. Be3 {[%emt 0:00:12]} e5 {[%emt 0:00:08]} 7. Nb3 {[%emt 0:00:13]} Be6 {[%emt 0:00:18]} 8. Qd2 {[%emt 0:00:22]} Be7 {[%emt 0:03:12]} 9. f4 {[%emt 0:00:19]} Qc7 {[%emt 0:03:36]} 10. O-O-O {[%emt 0:03:09]} Nbd7 {[%emt 0:03:09]} 11. h3 {[%emt 0:03:08]} b5 {[%emt 0:04:32]} 12. f5 {[%emt 0:08:25]} Bc4 {[%emt 0:04:26]} 13. g4 {[%emt 0:05:35]} h6 {[%emt 0:13:15]} 14. Kb1 {[%emt 0:14:45]} Nb6 {[%emt 0:05:51]} (14... b4 $15 15. Bxc4 Qxc4) 15. Qf2 {[%emt 0:08:04]} ({Lieber} 15. Bxb6 $16 Qxb6 16. Bxc4 bxc4 17. Nd5 Nxd5 18. Qxd5) 15... Rb8 $14 {[%emt 0:02:06]} 16. Bg2 {[%emt 0:14:14]} b4 {[%emt 0:08:25]} 17. Nd5 {[%emt 0:01:21]} Nfxd5 {[%emt 0:05:53]} 18. exd5 {[%emt 0:00:30]} a5 {[%emt 0:01:22]} 19. Nxa5 {[%emt 0:06:27]} Bxa2+ {[%emt 0:08:33]} 20. Kxa2 {[%emt 0:04:52]} Qa7 {[%emt 0:01:34]} 21. Bxb6 {[%emt 0:07:56]} Rxb6 {[%emt 0:00:18]} 22. Kb3 {[%emt 0:00:05]} Qxa5 {[%emt 0:00:30]} 23. Ra1 {[%emt 0:00:16]} Qb5 {[%emt 0:06:42]} 24. Rhd1 {[%emt 0:06:19]} Bd8 {[%emt 0:08:23]} 25. f6 {[%emt 0:04:35]} gxf6 {[%emt 0:01:53]} 26. Bf1 {[%emt 0:03:43]} Qd7 {[%emt 0:01:43]} 27. Ra8 {[%emt 0:00:41]} Qc7 {[%emt 0:09:45]} 28. Qxf6 {[%emt 0:01:01]} O-O {[%emt 0:05:43]} 29. Qxh6 {[%emt 0:00:42]} f6 {[%emt 0:01:00]} 30. Bd3 {[%emt 0:02:23]} Qg7 {[%emt 0:01:24]} 31. Qxg7+ {[%emt 0:00:14]} Kxg7 {[%emt 0:00:01]} 32. Rda1 {[%emt 0:00:14]} Rb7 {[%emt 0:00:57]} 33. R1a7 {[%emt 0:01:05]} Rxa7 {[%emt 0:00:21]} 34. Rxa7+ {[%emt 0:00:01]} Kh6 {[%emt 0:00:09]} 35. h4 {[%emt 0:00:29]} f5 {[%emt 0:00:35]} 36. Bxf5 {[%emt 0:00:22]} 1-0